Workbook

Sheet Sheet1
A1: 吉林市中心医院2017年招聘非编工作人员拟聘用人员公示名单
A2: 序号 | B2: 报考岗位 | C2: 姓名 | D2: 性别 | E2: 笔试成绩 | F2: 笔试成绩折算 （50%） | G2: 面试成绩 | H2: 面试成绩折算 （50%） | I2: 总成绩 | J2: 招聘结果
A3: 1-2 | B3: 神经内科医生 | C3: 杨冬雪 | D3: 女 | E3: 研究生免试 | F3: 研究生免试 | G3: 90.8 | H3: 90.8 | I3: 90.8 | J3: 录取
A4: 1-1 | B4: 神经内科医生 | C4: 丁香 | D4: 女 | E4: 研究生免试 | F4: 研究生免试 | G4: 78.6 | H4: 78.6 | I4: 78.6
A5: 2-1 | B5: 放射肿瘤科医生 | C5: 佟巍 | D5: 女 | E5: 72 | F5: =(E5*50%) -> 36 | G5: 92.8 | H5: =(G5*50%) -> 46.4 | I5: =(F5+H5) -> 82.4 | J5: 录取
A6: 2-2 | B6: 放射肿瘤科医生 | C6: 宁丽娜 | D6: 女 | E6: 71 | F6: =(E6*50%) -> 35.5 | G6: 78.6 | H6: =(G6*50%) -> 39.3 | I6: =(F6+H6) -> 74.8
A7: 2-3 | B7: 放射肿瘤科医生 | C7: 陈立婷 | D7: 女 | E7: 研究生免试 | F7: 研究生免试 | G7: 74.6 | H7: 74.6 | I7: 74.6
A8: 3-1 | B8: 放射治疗科（技师） | C8: 任立华 | D8: 男 | E8: 72 | F8: =(E8*50%) -> 36 | G8: 89.4 | H8: =(G8*50%) -> 44.7 | I8: =(F8+H8) -> 80.7 | J8: 录取
A9: 3-3 | B9: 放射治疗科（技师） | C9: 戚晓雷 | D9: 男 | E9: 54 | F9: 27 | G9: 90.6 | H9: 45.3 | I9: 72.3 | J9: 录取
A10: 3-2 | B10: 放射治疗科（技师） | C10: 张赟 | D10: 男 | E10: 54 | F10: 27 | G10: 86.8 | H10: 43.4 | I10: 70.4 | J10: 录取
A11: 3-4 | B11: 放射治疗科（技师） | C11: 张鹏 | D11: 男 | E11: 51 | F11: 25.5 | G11: 86.4 | H11: 43.2 | I11: 68.7 | J11: 录取
A12: 3-6 | B12: 放射治疗科（技师） | C12: 翟航 | D12: 男 | E12: 48 | F12: 24 | G12: 80.8 | H12: 40.4 | I12: 64.4
A13: 3-5 | B13: 放射治疗科（技师） | C13: 高洪岭 | D13: 男 | E13: 49 | F13: 24.5 | G13: 70.4 | H13: 35.2 | I13: 59.7
A14: 4-1 | B14: 血液内科医生 | C14: 于利昊 | D14: 男 | E14: 88 | F14: 44 | G14: 91.2 | H14: 45.6 | I14: 89.6 | J14: 录取
A15: 4-2 | B15: 血液内科医生 | C15: 桑园 | D15: 女 | E15: 77 | F15: 38.5 | G15: 89 | H15: 44.5 | I15: 83
A16: 4-3 | B16: 血液内科医生 | C16: 李博 | D16: 女 | E16: 71 | F16: 35.5 | G16: 91 | H16: 45.5 | I16: 81
A17: 5-1 | B17: 内镜中心医生 | C17: 郑伟娣 | D17: 女 | E17: 99 | F17: 49.5 | G17: 88.4 | H17: 44.2 | I17: 93.7 | J17: 录取
A18: 5-2 | B18: 内镜中心医生 | C18: 孙玉霞 | D18: 女 | E18: 73 | F18: 36.5 | G18: 85.2 | H18: 42.6 | I18: 79.1
A19: 6-1 | B19: 药剂科（中药师） | C19: 雷岱虹 | D19: 女 | E19: 研究生免试 | F19: 研究生免试 | G19: 93 | H19: 93 | I19: 93 | J19: 录取
A20: 7-5 | B20: 基本外科医生 | C20: 贾翊平 | D20: 男 | E20: 研究生免试 | F20: 研究生免试 | G20: 89.2 | H20: 89.2 | I20: 89.2 | J20: 录取
A21: 7-2 | B21: 基本外科医生 | C21: 张阳 | D21: 男 | E21: 77 | F21: =(E21*50%) -> 38.5 | G21: 93.2 | H21: =(G21*50%) -> 46.6 | I21: =(F21+H21) -> 85.1 | J21: 录取
A22: 7-1 | B22: 基本外科医生 | C22: 李海洋 | D22: 男 | E22: 78 | F22: 39 | G22: 76.6 | H22: 38.3 | I22: 77.3
A23: 7-3 | B23: 基本外科医生 | C23: 郭金峰 | D23: 男 | E23: 58 | F23: 29 | G23: 73.4 | H23: 36.7 | I23: 65.7
A24: 8-1 | B24: 神经外科医生 | C24: 林佳 | D24: 男 | E24: 研究生免试 | F24: 研究生免试 | G24: 95.8 | H24: 95.8 | I24: 95.8 | J24: 录取
A25: 8-2 | B25: 神经外科医生 | C25: 王雷 | D25: 男 | E25: 研究生免试 | F25: 研究生免试 | G25: 85.8 | H25: 85.8 | I25: 85.8
A26: 9-1 | B26: 眼科医生 | C26: 徐萌 | D26: 女 | E26: 研究生免试 | F26: 研究生免试 | G26: 93.6 | H26: 93.6 | I26: 93.6 | J26: 录取
A27: 9-2 | B27: 眼科医生 | C27: 潘小涛 | D27: 男 | E27: 研究生免试 | F27: 研究生免试 | G27: 90.2 | H27: 90.2 | I27: 90.2 | J27: 录取
A28: 10-6 | B28: CT核磁科医生 | C28: 孙德秀 | D28: 女 | E28: 研究生免试 | F28: 研究生免试 | G28: 97.2 | H28: 97.2 | I28: 97.2 | J28: 录取
A29: 10-1 | B29: CT核磁科医生 | C29: 宋晓雨 | D29: 女 | E29: 77 | F29: =(E29*50%) -> 38.5 | G29: 94.2 | H29: =(G29*50%) -> 47.1 | I29: =(F29+H29) -> 85.6 | J29: 录取
A30: 10-2 | B30: CT核磁科医生 | C30: 刘春颖 | D30: 女 | E30: 57 | F30: 28.5 | G30: 82.4 | H30: 41.2 | I30: 69.7
A31: 10-3 | B31: CT核磁科医生 | C31: 路颖 | D31: 女 | E31: 51 | F31: 25.5 | G31: 78.8 | H31: 39.4 | I31: 64.9
A32: 10-4 | B32: CT核磁科医生 | C32: 焦秋红 | D32: 女 | E32: 50 | F32: 25 | G32: 79.8 | H32: 39.9 | I32: 64.9
A33: 10-5 | B33: CT核磁科医生 | C33: 王星蕊 | D33: 女 | E33: 49 | F33: 24.5 | G33: 80 | H33: 40 | I33: 64.5
A34: 11-1 | B34: 超声科医生 | C34: 邢丹 | D34: 女 | E34: 研究生免试 | F34: 研究生免试 | G34: 96.6 | H34: 96.6 | I34: 96.6 | J34: 录取
A35: 11-2 | B35: 超声科医生 | C35: 杨旭 | D35: 男 | E35: 研究生免试 | F35: 研究生免试 | G35: 89.8 | H35: 89.8 | I35: 89.8 | J35: 录取
